[Event "*** Titled Tuesday Blitz"]
[Site "Chess.com"]
[Date "2020.05.05"]
[Round "5"]
[White "abubakrtagelsir"]
[Black "Natalya_Buksa"]
[Result "1-0"]
[WhiteElo "2361"]
[BlackElo "2487"]
[TimeControl "180+1"]
[EndTime "10:56:52 PDT"]
[Termination "abubakrtagelsir won by resignation"]

1. e4 {[%clk 0:03:00]} 1... c5 {[%clk 0:02:57.8]} 2. Nc3 {[%clk 0:02:58.9]} 2...
Nc6 {[%clk 0:02:56.9]} 3. f4 {[%clk 0:02:59]} 3... e6 {[%clk 0:02:55.3]} 4. Nf3
{[%clk 0:02:58.6]} 4... d5 {[%clk 0:02:55.8]} 5. d3 {[%clk 0:02:56.7]} 5... dxe4
{[%clk 0:02:54.7]} 6. dxe4 {[%clk 0:02:56.5]} 6... Qxd1+ {[%clk 0:02:54.4]} 7.
Nxd1 {[%clk 0:02:56.5]} 7... Nf6 {[%clk 0:02:53.4]} 8. Nf2 {[%clk 0:02:55.2]}
8... Nb4 {[%clk 0:02:35.8]} 9. Kd1 {[%clk 0:02:41.7]} 9... Bd7 {[%clk
0:02:35.3]} 10. c3 {[%clk 0:02:40.5]} 10... Nc6 {[%clk 0:02:31.7]} 11. Kc2
{[%clk 0:02:36.3]} 11... O-O-O {[%clk 0:02:28.8]} 12. Be3 {[%clk 0:02:35.3]}
12... h6 {[%clk 0:02:26.7]} 13. h4 {[%clk 0:02:34.5]} 13... b6 {[%clk
0:02:25.5]} 14. Ba6+ {[%clk 0:02:31.7]} 14... Kc7 {[%clk 0:02:24.6]} 15. Rad1
{[%clk 0:02:27.6]} 15... Be7 {[%clk 0:02:24]} 16. Rd2 {[%clk 0:02:26.6]} 16...
Bc8 {[%clk 0:02:23.1]} 17. Bb5 {[%clk 0:02:17.2]} 17... Rxd2+ {[%clk 0:02:21.7]}
18. Bxd2 {[%clk 0:02:13.2]} 18... a6 {[%clk 0:02:21.5]} 19. Bxc6 {[%clk
0:02:12.6]} 19... Kxc6 {[%clk 0:02:20]} 20. Ne5+ {[%clk 0:02:12.3]} 20... Kc7
{[%clk 0:02:20.3]} 21. Nxf7 {[%clk 0:02:10.8]} 21... Rf8 {[%clk 0:02:15.4]} 22.
Ne5 {[%clk 0:02:10.6]} 22... Bb7 {[%clk 0:02:15.8]} 23. Re1 {[%clk 0:02:09.8]}
23... Nh5 {[%clk 0:02:04.8]} 24. Ng6 {[%clk 0:01:57.1]} 24... Rf7 {[%clk
0:02:04.4]} 25. Nxe7 {[%clk 0:01:55.5]} 25... Rxe7 {[%clk 0:02:05.3]} 26. g4
{[%clk 0:01:55]} 26... Nf6 {[%clk 0:02:02.3]} 27. g5 {[%clk 0:01:53.4]} 27...
Nh5 {[%clk 0:02:01]} 28. f5 {[%clk 0:01:49.9]} 28... exf5 {[%clk 0:01:37]} 29.
exf5 {[%clk 0:01:47.6]} 29... Rxe1 {[%clk 0:01:36.6]} 30. Bxe1 {[%clk
0:01:47.6]} 30... hxg5 {[%clk 0:01:37.5]} 31. hxg5 {[%clk 0:01:47.3]} 31... Bc8
{[%clk 0:01:38]} 32. f6 {[%clk 0:01:35]} 32... gxf6 {[%clk 0:01:37.5]} 33. gxf6
{[%clk 0:01:35]} 33... Nxf6 {[%clk 0:01:38.4]} 34. Nd1 {[%clk 0:01:27]} 34...
Bf5+ {[%clk 0:01:37.7]} 35. Kc1 {[%clk 0:01:24.3]} 35... Nd5 {[%clk 0:01:32.7]}
36. Bf2 {[%clk 0:01:20.7]} 36... Nf4 {[%clk 0:01:28.7]} 37. Bg3 {[%clk
0:01:17.4]} 37... Kc6 {[%clk 0:01:24.4]} 38. Bxf4 {[%clk 0:01:17.5]} 38... Be6
{[%clk 0:01:25.3]} 39. b3 {[%clk 0:01:16.7]} 39... a5 {[%clk 0:01:24.8]} 40. Kb2
{[%clk 0:01:15.4]} 40... b5 {[%clk 0:01:24.1]} 41. Nf2 {[%clk 0:01:14.1]} 41...
Bf5 {[%clk 0:01:23]} 42. Nh1 {[%clk 0:01:13.4]} 42... Be6 {[%clk 0:01:18.5]} 43.
Ng3 {[%clk 0:01:13.1]} 43... Bf7 {[%clk 0:01:16.4]} 44. Nf5 {[%clk 0:01:12.4]}
44... Be6 {[%clk 0:01:16.1]} 45. Ne3 {[%clk 0:01:11.5]} 45... Kb6 {[%clk
0:01:15.5]} 46. Bg5 {[%clk 0:01:09.6]} 46... Kc6 {[%clk 0:01:15]} 47. Bd8 {[%clk
0:01:09.1]} 47... a4 {[%clk 0:01:12.2]} 48. bxa4 {[%clk 0:01:07.7]} 48... bxa4
{[%clk 0:01:13.1]} 49. c4 {[%clk 0:01:06.6]} 49... Kd7 {[%clk 0:01:12.8]} 50.
Ba5 {[%clk 0:01:05.1]} 50... Kd6 {[%clk 0:01:09.8]} 51. Be1 {[%clk 0:01:00.4]}
51... Ke5 {[%clk 0:01:09]} 52. Kc3 {[%clk 0:00:58.4]} 52... Ke4 {[%clk
0:01:07.8]} 53. Nc2 {[%clk 0:00:57.4]} 53... Ke5 {[%clk 0:00:56.2]} 54. Bg3+
{[%clk 0:00:56.4]} 54... Ke4 {[%clk 0:00:56.4]} 55. Bf2 {[%clk 0:00:55.9]} 55...
Bg4 {[%clk 0:00:53.4]} 56. Bxc5 {[%clk 0:00:55]} 56... Bd1 {[%clk 0:00:54.3]}
57. Ne3 {[%clk 0:00:50.7]} 57... Ke5 {[%clk 0:00:53.2]} 58. Nxd1 {[%clk
0:00:50.4]} 1-0

[Event "*** Titled Tuesday Blitz"]
[Site "Chess.com"]
[Date "2020.05.05"]
[Round "5"]
[White "Antelacus"]
[Black "Kapibara_Warri0r"]
[Result "0-1"]
[WhiteElo "2269"]
[BlackElo "2100"]
[TimeControl "180+1"]
[EndTime "10:56:54 PDT"]
[Termination "Kapibara_Warri0r won on time"]

1. d4 {[%clk 0:03:00.9]} 1... Nf6 {[%clk 0:02:59.7]} 2. c4 {[%clk 0:03:00.6]}
2... g6 {[%clk 0:02:58.5]} 3. Nc3 {[%clk 0:03:01]} 3... d5 {[%clk 0:02:57.9]} 4.
cxd5 {[%clk 0:03:00.6]} 4... Nxd5 {[%clk 0:02:58.8]} 5. e4 {[%clk 0:03:00.7]}
5... Nxc3 {[%clk 0:02:59]} 6. bxc3 {[%clk 0:03:01.6]} 6... Bg7 {[%clk
0:02:59.9]} 7. Bc4 {[%clk 0:03:00.1]} 7... c5 {[%clk 0:02:58.6]} 8. Ne2 {[%clk
0:02:59.8]} 8... O-O {[%clk 0:02:43.6]} 9. h4 {[%clk 0:02:58.7]} 9... Bg4 {[%clk
0:02:36]} 10. f3 {[%clk 0:02:45.8]} 10... Bd7 {[%clk 0:02:22.6]} 11. h5 {[%clk
0:02:45]} 11... Qa5 {[%clk 0:02:13.1]} 12. O-O {[%clk 0:02:35.3]} 12... cxd4
{[%clk 0:02:07.5]} 13. cxd4 {[%clk 0:02:34.5]} 13... Qxh5 {[%clk 0:02:01]} 14.
Qb3 {[%clk 0:02:27.2]} 14... Nc6 {[%clk 0:01:40.8]} 15. Qxb7 {[%clk 0:02:21.3]}
15... Nxd4 {[%clk 0:01:22.7]} 16. Nf4 {[%clk 0:01:53.4]} 16... Qc5 {[%clk
0:01:11.2]} 17. Be3 {[%clk 0:01:42.9]} 17... Bc6 {[%clk 0:01:01.5]} 18. Qa6
{[%clk 0:01:38.2]} 18... Ne2+ {[%clk 0:00:52.3]} 19. Kf2 {[%clk 0:01:36]} 19...
Bd4 {[%clk 0:00:50.4]} 20. Bxd4 {[%clk 0:01:14.6]} 20... Nxd4 {[%clk 0:00:48.9]}
21. Nd3 {[%clk 0:01:03.1]} 21... Qg5 {[%clk 0:00:45.3]} 22. Kg1 {[%clk
0:00:51.4]} 22... Qe3+ {[%clk 0:00:42.3]} 23. Kh1 {[%clk 0:00:48.7]} 23... Ne2
{[%clk 0:00:36.9]} 24. Nf2 {[%clk 0:00:31.4]} 24... Ng3+ {[%clk 0:00:31.2]} 25.
Kg1 {[%clk 0:00:29.9]} 25... Nxf1 {[%clk 0:00:30.2]} 26. Rxf1 {[%clk 0:00:26.3]}
26... Bd7 {[%clk 0:00:27.3]} 27. Bd5 {[%clk 0:00:22.8]} 27... Rab8 {[%clk
0:00:24.9]} 28. Kh2 {[%clk 0:00:20.3]} 28... Bb5 {[%clk 0:00:23.4]} 29. Ng4
{[%clk 0:00:13.8]} 29... Qf4+ {[%clk 0:00:18.3]} 30. g3 {[%clk 0:00:13.4]} 30...
Bxa6 {[%clk 0:00:19.2]} 31. gxf4 {[%clk 0:00:12.9]} 31... Bxf1 {[%clk
0:00:20.1]} 0-1

[Event "*** Titled Tuesday Blitz"]
[Site "Chess.com"]
[Date "2020.05.05"]
[Round "5"]
[White "827883"]
[Black "kleopl"]
[Result "0-1"]
[WhiteElo "2216"]
[BlackElo "2442"]
[TimeControl "180+1"]
[EndTime "10:56:55 PDT"]
[Termination "kleopl won by resignation"]

1. e4 {[%clk 0:03:00.9]} 1... d5 {[%clk 0:02:59.1]} 2. exd5 {[%clk 0:03:00.7]}
2... Qxd5 {[%clk 0:03:00]} 3. Nc3 {[%clk 0:03:00.5]} 3... Qd6 {[%clk 0:03:00.3]}
4. Bc4 {[%clk 0:02:59]} 4... Nc6 {[%clk 0:02:57.3]} 5. Nf3 {[%clk 0:02:58.1]}
5... Bg4 {[%clk 0:02:57.2]} 6. h3 {[%clk 0:02:55.8]} 6... Bh5 {[%clk 0:02:53.7]}
7. g4 {[%clk 0:02:46.5]} 7... Bg6 {[%clk 0:02:52.5]} 8. d3 {[%clk 0:02:44.1]}
8... e6 {[%clk 0:02:48.5]} 9. Qe2 {[%clk 0:02:42.1]} 9... Nf6 {[%clk 0:02:44.7]}
10. Bd2 {[%clk 0:02:35.7]} 10... Be7 {[%clk 0:02:41.6]} 11. O-O-O {[%clk
0:02:33]} 11... a6 {[%clk 0:02:39.4]} 12. g5 {[%clk 0:02:27.9]} 12... Nd5 {[%clk
0:02:16.6]} 13. Nxd5 {[%clk 0:02:25.3]} 13... exd5 {[%clk 0:02:17.5]} 14. Bb3
{[%clk 0:02:23]} 14... Bh5 {[%clk 0:02:07.6]} 15. Qe3 {[%clk 0:02:10.8]} 15...
O-O-O {[%clk 0:02:02.2]} 16. Rde1 {[%clk 0:02:03.9]} 16... Rhe8 {[%clk
0:01:59.9]} 17. Nd4 {[%clk 0:01:54.4]} 17... f6 {[%clk 0:01:13.3]} 18. Nxc6
{[%clk 0:01:51.1]} 18... Qxc6 {[%clk 0:01:11.2]} 19. Qe6+ {[%clk 0:01:27.6]}
19... Qxe6 {[%clk 0:01:09.2]} 20. Rxe6 {[%clk 0:01:28.5]} 20... Bf7 {[%clk
0:01:01.8]} 21. Re2 {[%clk 0:01:23.1]} 21... fxg5 {[%clk 0:01:00.5]} 22. Rhe1
{[%clk 0:01:12.2]} 22... Kd7 {[%clk 0:00:55.1]} 23. Bc3 {[%clk 0:00:35]} 23...
Bf6 {[%clk 0:00:50.6]} 24. Rxe8 {[%clk 0:00:32.1]} 24... Rxe8 {[%clk 0:00:51.5]}
25. Rxe8 {[%clk 0:00:31.6]} 25... Kxe8 {[%clk 0:00:50.6]} 26. Bxf6 {[%clk
0:00:31.4]} 26... gxf6 {[%clk 0:00:50.4]} 27. d4 {[%clk 0:00:28.4]} 27... Be6
{[%clk 0:00:47.4]} 28. c3 {[%clk 0:00:26.2]} 28... c6 {[%clk 0:00:45.2]} 29. Kd2
{[%clk 0:00:25.7]} 29... Bxh3 {[%clk 0:00:44.4]} 30. Ke3 {[%clk 0:00:25.9]}
30... Bf5 {[%clk 0:00:43.1]} 31. Bd1 {[%clk 0:00:24.9]} 31... Ke7 {[%clk
0:00:41.4]} 32. f4 {[%clk 0:00:22.8]} 32... g4 {[%clk 0:00:40.2]} 33. Kf2 {[%clk
0:00:23.1]} 33... h5 {[%clk 0:00:36.4]} 34. Kg3 {[%clk 0:00:23.3]} 34... Be4
{[%clk 0:00:34.6]} 35. Be2 {[%clk 0:00:21]} 35... Ke6 {[%clk 0:00:32.1]} 36. Bf1
{[%clk 0:00:20.5]} 36... Kf5 {[%clk 0:00:32.1]} 37. Be2 {[%clk 0:00:20]} 37...
Bb1 {[%clk 0:00:27.1]} 38. a3 {[%clk 0:00:20]} 38... Ke4 {[%clk 0:00:27]} 39.
Bf1 {[%clk 0:00:18.2]} 39... Ke3 {[%clk 0:00:26.9]} 40. Bg2 {[%clk 0:00:16.5]}
40... Bd3 {[%clk 0:00:25.7]} 41. Bh1 {[%clk 0:00:16]} 41... Be4 {[%clk
0:00:25.4]} 42. Bxe4 {[%clk 0:00:12.4]} 42... Kxe4 {[%clk 0:00:25.3]} 0-1

[Event "*** Titled Tuesday Blitz"]
[Site "Chess.com"]
[Date "2020.05.05"]
[Round "5"]
[White "sergoy"]
[Black "Rud_Makarian"]
[Result "0-1"]
[WhiteElo "2856"]
[BlackElo "2750"]
[TimeControl "180+1"]
[EndTime "10:56:56 PDT"]
[Termination "Rud_Makarian won by resignation"]

1. d4 {[%clk 0:03:00.9]} 1... Nf6 {[%clk 0:02:59.4]} 2. c4 {[%clk 0:03:00.8]}
2... g6 {[%clk 0:02:58.1]} 3. Nf3 {[%clk 0:02:58.1]} 3... Bg7 {[%clk 0:02:59]}
4. g3 {[%clk 0:02:58.3]} 4... c5 {[%clk 0:02:58.6]} 5. Nc3 {[%clk 0:02:57.2]}
5... cxd4 {[%clk 0:02:57.6]} 6. Nxd4 {[%clk 0:02:57.3]} 6... h5 {[%clk
0:02:56.9]} 7. Bg2 {[%clk 0:02:49.9]} 7... Nc6 {[%clk 0:02:54.7]} 8. Nc2 {[%clk
0:02:38.5]} 8... h4 {[%clk 0:02:53.5]} 9. Bg5 {[%clk 0:02:35.7]} 9... h3 {[%clk
0:02:52]} 10. Bf3 {[%clk 0:02:35.5]} 10... Ne5 {[%clk 0:02:50.7]} 11. Ne3 {[%clk
0:02:17.6]} 11... Qa5 {[%clk 0:02:34.5]} 12. Bxf6 {[%clk 0:02:16.8]} 12... Bxf6
{[%clk 0:02:35.4]} 13. O-O {[%clk 0:02:14.4]} 13... Nxf3+ {[%clk 0:02:32.4]} 14.
exf3 {[%clk 0:02:15.3]} 14... Bxc3 {[%clk 0:02:01.6]} 15. bxc3 {[%clk
0:02:16.2]} 15... d6 {[%clk 0:02:02.1]} 16. Qd4 {[%clk 0:02:12.9]} 16... Qe5
{[%clk 0:01:59.1]} 17. Nd5 {[%clk 0:02:09.4]} 17... Qxd4 {[%clk 0:01:44.1]} 18.
cxd4 {[%clk 0:02:10.3]} 18... Kd8 {[%clk 0:01:44.5]} 19. c5 {[%clk 0:02:07.5]}
19... Be6 {[%clk 0:01:33.1]} 20. Nf4 {[%clk 0:01:59.5]} 20... Bd7 {[%clk
0:01:27.8]} 21. Rfe1 {[%clk 0:01:58]} 21... dxc5 {[%clk 0:00:56.4]} 22. dxc5
{[%clk 0:01:52.7]} 22... Bc6 {[%clk 0:00:56.6]} 23. Rad1+ {[%clk 0:01:51.7]}
23... Ke8 {[%clk 0:00:54.6]} 24. Rd3 {[%clk 0:01:44.3]} 24... Rd8 {[%clk
0:00:48.7]} 25. Rde3 {[%clk 0:01:44.5]} 25... Rd7 {[%clk 0:00:46.5]} 26. Nd3
{[%clk 0:01:44.5]} 26... f6 {[%clk 0:00:44.3]} 27. f4 {[%clk 0:01:34.9]} 27...
Kf7 {[%clk 0:00:39.1]} 28. f3 {[%clk 0:01:35]} 28... a5 {[%clk 0:00:36.1]} 29.
a3 {[%clk 0:01:33.4]} 29... Rh5 {[%clk 0:00:33.4]} 30. Rc1 {[%clk 0:00:39.4]}
30... Rhd5 {[%clk 0:00:24.3]} 31. Nf2 {[%clk 0:00:39.3]} 31... Rd2 {[%clk
0:00:24.4]} 32. Rce1 {[%clk 0:00:36.5]} 32... Rc2 {[%clk 0:00:23.1]} 33. Nxh3
{[%clk 0:00:36.8]} 33... Rdd2 {[%clk 0:00:20.2]} 34. Rb1 {[%clk 0:00:10.2]}
34... Rxh2 {[%clk 0:00:17.2]} 0-1

[Event "*** Titled Tuesday Blitz"]
[Site "Chess.com"]
[Date "2020.05.05"]
[Round "5"]
[White "Mikhail_Biryukov"]
[Black "Yaacovn"]
[Result "1/2-1/2"]
[WhiteElo "2699"]
[BlackElo "2860"]
[TimeControl "180+1"]
[EndTime "10:56:56 PDT"]
[Termination "Game drawn by repetition"]

1. e4 {[%clk 0:03:00.9]} 1... c6 {[%clk 0:03:00.1]} 2. d4 {[%clk 0:02:59.3]}
2... d5 {[%clk 0:03:01]} 3. Nd2 {[%clk 0:02:59.3]} 3... dxe4 {[%clk 0:03:01.3]}
4. Nxe4 {[%clk 0:03:00.2]} 4... Nf6 {[%clk 0:03:02]} 5. Nxf6+ {[%clk 0:02:59.8]}
5... gxf6 {[%clk 0:03:02.9]} 6. c3 {[%clk 0:02:57.9]} 6... Qd5 {[%clk
0:03:02.6]} 7. Qf3 {[%clk 0:02:55.7]} 7... Bf5 {[%clk 0:03:02.6]} 8. Qxd5 {[%clk
0:02:55.2]} 8... cxd5 {[%clk 0:03:03.5]} 9. Be3 {[%clk 0:02:54.1]} 9... Nc6
{[%clk 0:03:03.9]} 10. Kd2 {[%clk 0:02:53.6]} 10... e6 {[%clk 0:03:04.3]} 11.
Bd3 {[%clk 0:02:53.7]} 11... Bg6 {[%clk 0:03:03.4]} 12. h4 {[%clk 0:02:53.1]}
12... Rg8 {[%clk 0:03:03]} 13. g3 {[%clk 0:02:53]} 13... O-O-O {[%clk
0:03:02.9]} 14. Ne2 {[%clk 0:02:52]} 14... Bd6 {[%clk 0:03:02.5]} 15. h5 {[%clk
0:02:38.8]} 15... Bxd3 {[%clk 0:03:01.8]} 16. Kxd3 {[%clk 0:02:39.5]} 16... Kd7
{[%clk 0:02:59.9]} 17. Rae1 {[%clk 0:02:38.2]} 17... Ne7 {[%clk 0:02:59.9]} 18.
Bf4 {[%clk 0:02:35.3]} 18... Nf5 {[%clk 0:02:57]} 19. Bxd6 {[%clk 0:02:34.7]}
19... Nxd6 {[%clk 0:02:57.4]} 20. f3 {[%clk 0:02:22.8]} 20... f5 {[%clk
0:02:54.8]} 21. b3 {[%clk 0:02:17.5]} 21... b5 {[%clk 0:02:50.1]} 22. Reg1
{[%clk 0:02:13.7]} 22... Rg5 {[%clk 0:02:47.9]} 23. Rh4 {[%clk 0:02:10.3]} 23...
Rdg8 {[%clk 0:02:46.8]} 24. Rgh1 {[%clk 0:02:09.1]} 24... h6 {[%clk 0:02:45.4]}
25. R4h3 {[%clk 0:02:04.3]} 25... Ne8 {[%clk 0:02:34.4]} 26. Ke3 {[%clk
0:01:53.2]} 26... f6 {[%clk 0:02:24.1]} 27. Kf2 {[%clk 0:01:46.9]} 27... Nd6
{[%clk 0:02:14.9]} 28. Ra1 {[%clk 0:01:43]} 28... e5 {[%clk 0:01:50.7]} 29. a4
{[%clk 0:01:40.6]} 29... b4 {[%clk 0:01:51.1]} 30. cxb4 {[%clk 0:01:39.3]} 30...
f4 {[%clk 0:01:51.4]} 31. Rg1 {[%clk 0:01:29.8]} 31... fxg3+ {[%clk 0:01:16.7]}
32. Rhxg3 {[%clk 0:01:28]} 32... e4 {[%clk 0:00:56.4]} 33. f4 {[%clk 0:01:15.7]}
33... Rxg3 {[%clk 0:00:50.4]} 34. Rxg3 {[%clk 0:01:16.6]} 34... Rc8 {[%clk
0:00:49.9]} 35. Rg6 {[%clk 0:01:13.5]} 35... Ke6 {[%clk 0:00:45.7]} 36. Rxh6
{[%clk 0:01:13.1]} 36... Rc2 {[%clk 0:00:44.3]} 37. Rh8 {[%clk 0:01:13]} 37...
Nf5 {[%clk 0:00:41.3]} 38. h6 {[%clk 0:01:09]} 38... Kf7 {[%clk 0:00:32.7]} 39.
Rd8 {[%clk 0:00:45.3]} 39... Nxh6 {[%clk 0:00:31.6]} 40. Rxd5 {[%clk 0:00:45.2]}
40... Ng4+ {[%clk 0:00:31.9]} 41. Ke1 {[%clk 0:00:39.3]} 41... Ne3 {[%clk
0:00:25.2]} 42. Ra5 {[%clk 0:00:36.6]} 42... Kg6 {[%clk 0:00:20.6]} 43. Ng3
{[%clk 0:00:33.3]} 43... Ng2+ {[%clk 0:00:16.7]} 44. Kd1 {[%clk 0:00:32.3]}
44... Ne3+ {[%clk 0:00:16.4]} 45. Ke1 {[%clk 0:00:32.6]} 45... Ng2+ {[%clk
0:00:16.9]} 46. Kd1 {[%clk 0:00:33]} 46... Ne3+ {[%clk 0:00:17]} 47. Ke1 {[%clk
0:00:33.7]} 1/2-1/2

[Event "*** Titled Tuesday Blitz"]
[Site "Chess.com"]
[Date "2020.05.05"]
[Round "5"]
[White "Ashedu66"]
[Black "Shuvalov"]
[Result "0-1"]
[WhiteElo "2156"]
[BlackElo "2436"]
[TimeControl "180+1"]
[EndTime "10:56:56 PDT"]
[Termination "Shuvalov won on time"]

1. d4 {[%clk 0:03:00.9]} 1... d5 {[%clk 0:02:58.1]} 2. c4 {[%clk 0:03:00.6]}
2... c6 {[%clk 0:02:58.1]} 3. Nf3 {[%clk 0:03:00]} 3... Nf6 {[%clk 0:02:57.9]}
4. Nc3 {[%clk 0:02:59.5]} 4... dxc4 {[%clk 0:02:56.3]} 5. a4 {[%clk 0:02:58.1]}
5... Bf5 {[%clk 0:02:51.6]} 6. g3 {[%clk 0:02:58]} 6... Nbd7 {[%clk 0:02:47.6]}
7. Bg2 {[%clk 0:02:58.1]} 7... e6 {[%clk 0:02:46.8]} 8. O-O {[%clk 0:02:58.1]}
8... Bb4 {[%clk 0:02:46]} 9. Nd2 {[%clk 0:02:50.5]} 9... e5 {[%clk 0:02:00.5]}
10. Nxc4 {[%clk 0:02:35.5]} 10... exd4 {[%clk 0:01:55]} 11. Qxd4 {[%clk
0:02:32.3]} 11... Nb6 {[%clk 0:01:46.6]} 12. Qe5+ {[%clk 0:01:59.4]} 12... Be6
{[%clk 0:01:45.5]} 13. Nxb6 {[%clk 0:01:40.3]} 13... axb6 {[%clk 0:01:40.1]} 14.
Bg5 {[%clk 0:01:07.5]} 14... Be7 {[%clk 0:01:02.2]} 15. Rfd1 {[%clk 0:00:56.3]}
15... Qb8 {[%clk 0:01:01.2]} 16. Qxb8+ {[%clk 0:00:31.2]} 16... Rxb8 {[%clk
0:01:02.1]} 17. Bxf6 {[%clk 0:00:19.4]} 17... Bxf6 {[%clk 0:00:59.7]} 18. Ne4
{[%clk 0:00:19.5]} 18... Be5 {[%clk 0:00:44.1]} 19. a5 {[%clk 0:00:16.4]} 19...
bxa5 {[%clk 0:00:41]} 20. Rxa5 {[%clk 0:00:12.7]} 20... Bc7 {[%clk 0:00:38.2]}
21. Ra7 {[%clk 0:00:09.1]} 21... Ke7 {[%clk 0:00:28.2]} 22. Nc5 {[%clk
0:00:08.7]} 22... Bc8 {[%clk 0:00:28]} 23. Na6 {[%clk 0:00:07.7]} 23... Bb6
{[%clk 0:00:20.7]} 24. Nxb8 {[%clk 0:00:06.3]} 24... Bxa7 {[%clk 0:00:21]} 25.
Nxc6+ {[%clk 0:00:03.8]} 25... bxc6 {[%clk 0:00:20.9]} 26. Bxc6 {[%clk
0:00:03.7]} 26... Rd8 {[%clk 0:00:18.4]} 27. Ra1 {[%clk 0:00:03.6]} 27... Bb6
{[%clk 0:00:16]} 28. Bf3 {[%clk 0:00:03.5]} 28... Bh3 {[%clk 0:00:13.8]} 29. Bg2
{[%clk 0:00:02.4]} 29... Bxg2 {[%clk 0:00:13.2]} 30. Kxg2 {[%clk 0:00:02.7]}
30... Rd2 {[%clk 0:00:14]} 0-1

[Event "*** Titled Tuesday Blitz"]
[Site "Chess.com"]
[Date "2020.05.05"]
[Round "5"]
[White "SahajGrover"]
[Black "GianmarcoVaR"]
[Result "1-0"]
[WhiteElo "2725"]
[BlackElo "2546"]
[TimeControl "180+1"]
[EndTime "10:56:57 PDT"]
[Termination "SahajGrover won on time"]

1. d4 {[%clk 0:03:00.9]} 1... Nf6 {[%clk 0:02:54.6]} 2. Bf4 {[%clk 0:03:01.1]}
2... e6 {[%clk 0:02:54.4]} 3. e3 {[%clk 0:03:00.2]} 3... c5 {[%clk 0:02:54.1]}
4. c3 {[%clk 0:02:58.4]} 4... Be7 {[%clk 0:02:53.3]} 5. Nd2 {[%clk 0:02:58.2]}
5... O-O {[%clk 0:02:52.1]} 6. Bd3 {[%clk 0:02:58.8]} 6... b6 {[%clk 0:02:50.9]}
7. Qf3 {[%clk 0:02:58.1]} 7... Nc6 {[%clk 0:02:45.3]} 8. Ne2 {[%clk 0:02:49.1]}
8... cxd4 {[%clk 0:02:19]} 9. exd4 {[%clk 0:02:38.9]} 9... Bb7 {[%clk
0:02:16.9]} 10. Qh3 {[%clk 0:02:26.1]} 10... Re8 {[%clk 0:02:00.2]} 11. Ng3
{[%clk 0:02:11.9]} 11... d6 {[%clk 0:01:52]} 12. O-O-O {[%clk 0:02:03.7]} 12...
h6 {[%clk 0:01:05.4]} 13. Nge4 {[%clk 0:01:53]} 13... Nd5 {[%clk 0:00:55.9]} 14.
Bxh6 {[%clk 0:01:43.6]} 14... gxh6 {[%clk 0:00:52.2]} 15. Qxh6 {[%clk
0:01:44.5]} 15... Bf8 {[%clk 0:00:49.4]} 16. Qh5 {[%clk 0:01:42.4]} 16... Bg7
{[%clk 0:00:45.5]} 17. Ng5 {[%clk 0:01:39.3]} 17... Qf6 {[%clk 0:00:31.8]} 18.
Nde4 {[%clk 0:01:38.3]} 18... Qh6 {[%clk 0:00:29.1]} 19. Qxf7+ {[%clk
0:01:36.3]} 19... Kh8 {[%clk 0:00:28.2]} 20. Qxb7 {[%clk 0:01:33.8]} 20... Ncb4
{[%clk 0:00:15.6]} 21. Kb1 {[%clk 0:01:26.5]} 21... Rf8 {[%clk 0:00:06.1]} 22.
cxb4 {[%clk 0:01:22.3]} 22... Rab8 {[%clk 0:00:05.2]} 23. Qxb8 {[%clk
0:01:22.4]} 23... Rxb8 {[%clk 0:00:04.3]} 24. Nf7+ {[%clk 0:01:23.1]} 24... Kg8
{[%clk 0:00:04.8]} 25. Nxh6+ {[%clk 0:01:24]} 25... Bxh6 {[%clk 0:00:05.2]} 26.
Bc4 {[%clk 0:01:23.1]} 26... Kf7 {[%clk 0:00:04.5]} 27. Bxd5 {[%clk 0:01:23.3]}
27... exd5 {[%clk 0:00:04.9]} 28. Nxd6+ {[%clk 0:01:24.2]} 28... Ke6 {[%clk
0:00:04.8]} 29. Nb5 {[%clk 0:01:24.8]} 29... Kd7 {[%clk 0:00:04.4]} 30. Rhe1
{[%clk 0:01:24]} 30... Rg8 {[%clk 0:00:03]} 31. g3 {[%clk 0:01:23.7]} 31... a6
{[%clk 0:00:02.3]} 32. Nc3 {[%clk 0:01:23.2]} 32... Kd6 {[%clk 0:00:02.2]} 33.
Re5 {[%clk 0:01:22.7]} 33... Rg5 {[%clk 0:00:01.3]} 34. f4 {[%clk 0:00:29.6]}
1-0

[Event "*** Titled Tuesday Blitz"]
[Site "Chess.com"]
[Date "2020.05.05"]
[Round "5"]
[White "MisiekZielony"]
[Black "Fh2411"]
[Result "0-1"]
[WhiteElo "2151"]
[BlackElo "2463"]
[TimeControl "180+1"]
[EndTime "10:56:57 PDT"]
[Termination "Fh2411 won on time"]

1. c4 {[%clk 0:03:00]} 1... c6 {[%clk 0:02:52.9]} 2. Nc3 {[%clk 0:02:59.8]} 2...
d5 {[%clk 0:02:53.2]} 3. cxd5 {[%clk 0:03:00.2]} 3... cxd5 {[%clk 0:02:54.1]} 4.
d4 {[%clk 0:03:00.6]} 4... Nf6 {[%clk 0:02:53.3]} 5. Nf3 {[%clk 0:03:00.8]} 5...
Nc6 {[%clk 0:02:53.8]} 6. Bf4 {[%clk 0:03:00.7]} 6... Bf5 {[%clk 0:02:54.3]} 7.
e3 {[%clk 0:03:00.1]} 7... e6 {[%clk 0:02:54.8]} 8. Bb5 {[%clk 0:02:59.9]} 8...
Bb4 {[%clk 0:02:52.5]} 9. Bxc6+ {[%clk 0:02:51.1]} 9... bxc6 {[%clk 0:02:52.1]}
10. O-O {[%clk 0:02:51.3]} 10... Bxc3 {[%clk 0:02:46.3]} 11. bxc3 {[%clk
0:02:51]} 11... O-O {[%clk 0:02:46.9]} 12. Ne5 {[%clk 0:02:41.3]} 12... Qc8
{[%clk 0:02:34.6]} 13. c4 {[%clk 0:02:22.8]} 13... Qa6 {[%clk 0:02:29.3]} 14. c5
{[%clk 0:01:59.9]} 14... h6 {[%clk 0:02:01]} 15. h3 {[%clk 0:01:45.6]} 15...
Rfe8 {[%clk 0:01:59.8]} 16. g4 {[%clk 0:01:35.7]} 16... Bh7 {[%clk 0:01:55.8]}
17. f3 {[%clk 0:01:30.8]} 17... Rad8 {[%clk 0:01:52.4]} 18. Rf2 {[%clk
0:01:23.7]} 18... Nd7 {[%clk 0:01:43.2]} 19. Nxd7 {[%clk 0:01:17]} 19... Rxd7
{[%clk 0:01:43.3]} 20. Rb2 {[%clk 0:01:10.4]} 20... Rb7 {[%clk 0:01:36.6]} 21.
Rxb7 {[%clk 0:01:06.9]} 21... Qxb7 {[%clk 0:01:37.5]} 22. Qb3 {[%clk 0:01:06]}
22... Re7 {[%clk 0:01:35.4]} 23. Bd6 {[%clk 0:01:00]} 23... Rd7 {[%clk
0:01:26.8]} 24. Rc1 {[%clk 0:00:52.2]} 24... Qxb3 {[%clk 0:01:24.8]} 25. axb3
{[%clk 0:00:52]} 25... Rb7 {[%clk 0:01:24.9]} 26. Ra1 {[%clk 0:00:48.3]} 26...
Bd3 {[%clk 0:01:24.9]} 27. Kf2 {[%clk 0:00:40.3]} 27... a6 {[%clk 0:01:24.9]}
28. Ra2 {[%clk 0:00:36.7]} 28... Rxb3 {[%clk 0:01:21.9]} 29. Ke1 {[%clk
0:00:36.6]} 29... f6 {[%clk 0:01:14.1]} 30. Kd2 {[%clk 0:00:35.7]} 30... Bb5
{[%clk 0:01:13.6]} 31. h4 {[%clk 0:00:30.8]} 31... Rd3+ {[%clk 0:01:13]} 32. Ke1
{[%clk 0:00:27.8]} 32... Rxe3+ {[%clk 0:01:13.2]} 33. Kf2 {[%clk 0:00:28]} 33...
Rd3 {[%clk 0:01:13.4]} 34. g5 {[%clk 0:00:22.4]} 34... hxg5 {[%clk 0:01:11.9]}
35. hxg5 {[%clk 0:00:22.5]} 35... Kf7 {[%clk 0:01:08.3]} 36. gxf6 {[%clk
0:00:22.1]} 36... gxf6 {[%clk 0:01:09.2]} 37. Ra1 {[%clk 0:00:22.3]} 37... Rxd4
{[%clk 0:01:05.3]} 38. Rh1 {[%clk 0:00:22]} 38... e5 {[%clk 0:01:03.2]} 39. Rh7+
{[%clk 0:00:19.8]} 39... Kg6 {[%clk 0:01:02.4]} 40. Ra7 {[%clk 0:00:18.5]} 40...
Rf4 {[%clk 0:00:53.1]} 41. Rc7 {[%clk 0:00:13.7]} 41... d4 {[%clk 0:00:52]} 42.
Kg3 {[%clk 0:00:12.8]} 42... d3 {[%clk 0:00:50.1]} 0-1